fUST/lending_fUST_20250312
["ID","MTS","AMOUNT","RATE_DAILY","PERIOD"]
[355997359,1741789838966,-500.0,0.00016673,2]
[355997360,1741789838976,-151.0,0.000167,2]
[355997361,1741789838986,-714.3159918,0.00016702,2]
[355997362,1741789839000,-1000.0,0.00016747,2]
[355997363,1741789839010,-1000.0,0.00016747,2]
[355997364,1741789839020,-1000.0,0.00016747,2]
[355997365,1741789839030,-1000.0,0.00016747,2]
[355997366,1741789839040,-1000.0,0.00016747,2]
[355997367,1741789839202,-1000.0,0.00016747,2]
[355997368,1741789839218,-1000.0,0.00016747,2]
[355997369,1741789839227,-1000.0,0.00016747,2]
[355997370,1741789839236,-1000.0,0.00016747,2]
[355997371,1741789839246,-1000.0,0.00016747,2]
[355997372,1741789839255,-737.31691904,0.00016747,2]
[355997373,1741789839265,-152.0,0.00017055,2]
[355997374,1741789839275,-151.0,0.000172,2]
[355997375,1741789839284,-600.86764469,0.00017203,2]
[355997376,1741789839294,-489.46454729,0.00017386,2]
[355997377,1741789839306,-298.14620935,0.00017687,2]
[355997378,1741789839315,-151.0,0.000178,2]
[355997379,1741789839325,-2955.95,0.00018,2]
[355997380,1741789839334,-148113.77342684,0.00018,2]
[355997381,1741789839343,-420.0,0.00018188,2]
[355997383,1741789839353,-489.46454729,0.00018224,2]
[355997384,1741789839362,-151.0,0.000184,2]
[355997385,1741789839372,-1206.98220415,0.000185,2]
[355997386,1741789839381,-184.64,0.000186,2]
[355997387,1741789839390,-1506.82113607,0.000187,2]
[355997388,1741789839400,-1506.82113586,0.000187,2]
[355997390,1741789839409,-540.0,0.00018964,2]
[355997392,1741789839418,-1920.0,0.00018964,2]
[355997394,1741789839427,-2182.0,0.00018964,2]
[355997395,1741789839437,-150.0,0.00018964,2]
[355997396,1741789839446,-151.0,0.00019,2]
[355997398,1741789839455,-211.64123117,0.00019,120]
[355997400,1741789839464,-2200.0,0.00019034,2]
[355997401,1741789839474,-489.46454729,0.00019062,2]
[355997403,1741789839483,-1506.82113586,0.00019417,2]
[355997404,1741789839493,-151.0,0.000196,2]
[355997405,1741789839502,-587.0,0.00019873,2]
[355997407,1741789839512,-1050.48386192,0.00019884,2]
[355997408,1741789839522,-489.46454729,0.000199,2]
[355997409,1741789839531,-302.90962896,0.00019916,2]
[355997411,1741789839541,-500.0,0.00019973,2]
[355997414,1741789839551,-277.43519169,0.00019973,2]
[355997415,1741789839564,-500.0,0.00019973,2]
[355997418,1741789839574,-500.0,0.00019973,2]
[355997420,1741789839583,-425.90635992,0.00019973,2]
[355997421,1741789839593,-500.0,0.00019973,2]
[355997423,1741789839602,-527.12983452,0.00019973,2]
[355997425,1741789839612,-500.0,0.00019973,2]
[355997427,1741789839622,-500.0,0.00019973,2]
[355997428,1741789839631,-504.28753099,0.00019973,2]
[355997429,1741789839641,-500.0,0.00019973,2]
[355997430,1741789839650,-500.0,0.00019973,2]
[355997432,1741789839660,-500.0,0.00019973,2]
[355997434,1741789839669,-500.0,0.00019973,2]
[355997436,1741789839679,-500.0,0.00019973,2]
[355997438,1741789839688,-230.31197625,0.00019973,2]
[355997440,1741789839698,-62868.0,0.0002,2]
[355997442,1741789839708,-62868.0,0.0002,2]
[355997444,1741789839717,-62868.0,0.0002,2]
[355997446,1741789839726,-62868.0,0.0002,2]
[355997448,1741789839736,-62868.0,0.0002,2]
[355997449,1741789839745,-188.48197902,0.0002,2]
[355997450,1741789839755,-13519.508,0.0002,2]
[355997451,1741789839764,-1796.16450782,0.0002,30]
[355997452,1741789839773,-151.0,0.000201,4]
[355997453,1741789839783,-1506.82113586,0.00020176,2]
[355997454,1741789839792,-10712.62712242,0.0002035,2]
[355997455,1741789839802,-151.09991095,0.00020548,2]
[355997456,1741789839814,-160.0,0.00020642,3]
[355997457,1741789839823,-151.0,0.000207,3]
[355997458,1741789839833,-1506.82113586,0.00020934,2]
[355997459,1741789839842,-179.56903432,0.00020956,2]
[355997460,1741789839852,-160.0,0.00021058,2]
[355997461,1741789839862,-416.66666667,0.00021101,2]
[355997463,1741789839872,-160.0,0.00021101,2]
[355997464,1741789839881,-15577.25547611,0.00021101,2]
[355997465,1741789839890,-2305.53660184,0.000212,30]
[355997466,1741789839900,-151.0,0.000213,3]
[355997467,1741789839910,-151.0,0.000216,3]
[355997468,1741789839920,-1506.82113586,0.00021693,3]
[355997469,1741789839930,-823.0,0.00021713,2]
[355997470,1741789839940,-160.0,0.00021719,4]
[355997471,1741789839950,-3000.0,0.00021817,2]
[355997472,1741789839959,-174.09255559,0.00021817,2]
[355997473,1741789839968,-160.09593513,0.0002189,2]
[355997474,1741789839978,-151.0,0.000219,3]
[355997475,1741789839992,-512.03991349,0.00021917,2]
[355997476,1741789840002,-313.66917543,0.00021917,2]
[355997477,1741789840011,-428.4761151,0.00021917,2]
[355997478,1741789840021,-500.0,0.00021917,2]
[355997479,1741789840030,-500.0,0.00021917,2]
[355997480,1741789840040,-500.0,0.00021917,2]
[355997481,1741789840049,-500.0,0.00021917,2]
[355997482,1741789840061,-500.0,0.00021917,2]
[355997483,1741789840071,-517.62664884,0.00021917,2]
[355997484,1741789840080,-500.0,0.00021917,2]
[355997485,1741789840090,-501.3689984,0.00021917,2]
[355997486,1741789840099,-514.82313136,0.00021917,2]
[355997487,1741789840110,-500.0,0.00021917,2]
[355997488,1741789840119,-270.838071,0.00021917,2]
[355997489,1741789840129,-501.36794225,0.00021917,2]
[355997490,1741789840138,-500.0,0.00021917,2]
[355997491,1741789840147,-517.46512177,0.00021917,2]
[355997492,1741789840156,-508.88319553,0.00021917,2]
[355997493,1741789840165,-520.63928527,0.00021917,2]
[355997494,1741789840174,-510.49956206,0.00021917,2]
[355997495,1741789840183,-500.0,0.00021917,2]
[355997496,1741789840192,-512.83057655,0.00021917,2]
[355997497,1741789840201,-512.03859362,0.00021917,2]
[355997498,1741789840211,-503.63777399,0.00021917,2]
[355997499,1741789840219,-510.58789406,0.00021917,2]
[355997500,1741789840228,-514.45447354,0.00021917,2]
[355997501,1741789840238,-513.8267618,0.00021917,2]
[355997502,1741789840247,-519.9295524,0.00021917,2]
[355997504,1741789840257,-511.52939846,0.00021917,2]
[355997505,1741789840266,-558.31316494,0.00021917,2]
[355997506,1741789840275,-500.0,0.00021917,2]
[355997508,1741789840286,-200.0,0.00021917,2]
[355997510,1741789840295,-500.0,0.00021917,2]
[355997511,1741789840306,-509.62744111,0.00021917,2]
[355997512,1741789840315,-520.42814251,0.00021917,2]
[355997513,1741789840324,-495.0,0.00021917,2]
[355997514,1741789840333,-516.31551597,0.00021917,2]
[355997515,1741789840342,-520.78843635,0.00021917,2]
[355997516,1741789840351,-506.8930528,0.00021917,2]
[355997517,1741789840361,-517.92205332,0.00021917,2]
[355997518,1741789840370,-511.91483031,0.00021917,2]
[355997519,1741789840379,-507.31848725,0.00021917,2]
[355997520,1741789840388,-500.0,0.00021917,2]
[355997521,1741789840398,-500.0,0.00021917,2]
[355997522,1741789840407,-505.97256253,0.00021917,2]
[355997523,1741789840416,-517.62197839,0.00021917,2]
[355997524,1741789840425,-520.36631491,0.00021917,2]
[355997525,1741789840434,-526.67223749,0.00021917,2]
[355997526,1741789840443,-513.12423981,0.00021917,2]
[355997527,1741789840452,-523.50611925,0.00021917,2]
[355997528,1741789840462,-517.93641567,0.00021917,2]
[355997529,1741789840471,-517.79066561,0.00021917,2]
[355997530,1741789840480,-500.0,0.00021917,2]
[355997531,1741789840489,-500.0,0.00021917,2]
[355997532,1741789840499,-500.0,0.00021917,2]
[355997533,1741789840508,-158.0293837,0.00021917,2]
[355997534,1741789840518,-500.0,0.00021917,2]
[355997535,1741789840528,-500.0,0.00021917,2]
[355997536,1741789840537,-504.99093472,0.00021917,2]
[355997537,1741789840546,-500.0,0.00021917,2]
[355997538,1741789840556,-177.76818963,0.00021917,2]
[355997540,1741789840566,-500.0,0.00021917,2]
[355997541,1741789840575,-520.59963828,0.00021917,2]
[355997542,1741789840585,-502.10240063,0.00021917,2]
[355997543,1741789840594,-505.39198168,0.00021917,2]
[355997544,1741789840603,-269.85497192,0.00021917,2]
[355997545,1741789840612,-500.0,0.00021917,2]
[355997546,1741789840622,-514.34267357,0.00021917,2]
[355997547,1741789840631,-520.06858878,0.00021917,2]
[355997548,1741789840640,-500.0,0.00021917,2]
[355997549,1741789840650,-511.76007996,0.00021917,2]
[355997550,1741789840659,-500.0,0.00021917,2]
[355997551,1741789840669,-510.81819422,0.00021917,2]
[355997552,1741789840678,-514.65951519,0.00021917,2]
[355997553,1741789840688,-501.04247637,0.00021917,2]
[355997554,1741789840698,-586.2877314,0.00021917,2]
[355997555,1741789840708,-500.91488741,0.00021917,2]
[355997556,1741789840717,-807.82,0.00021917,2]
[355997557,1741789840727,-409.94154966,0.00021917,2]
[355997558,1741789840737,-509.9173985,0.00021917,2]
[355997559,1741789840746,-400.03262399,0.00021917,2]
[355997560,1741789840756,-509.64754391,0.00021917,2]
[355997561,1741789840766,-501.29052873,0.00021917,2]
[355997562,1741789840775,-504.77159601,0.00021917,2]
[355997563,1741789840784,-513.1934037,0.00021917,2]
[355997564,1741789840794,-505.12944844,0.00021917,2]
[355997565,1741789840804,-517.22708089,0.00021917,2]
[355997566,1741789840815,-506.6040403,0.00021917,2]
[355997567,1741789840824,-500.0,0.00021917,2]
[355997568,1741789840833,-500.0,0.00021917,2]
[355997569,1741789840842,-500.0,0.00021917,2]
[355997570,1741789840852,-502.00304415,0.00021917,2]
[355997571,1741789840861,-504.29042166,0.00021917,2]
[355997572,1741789840870,-500.0,0.00021917,2]
[355997573,1741789840879,-506.10192912,0.00021917,2]
[355997574,1741789840888,-317.08529297,0.00021917,2]
[355997575,1741789840897,-500.0,0.00021917,2]
[355997576,1741789840906,-500.0,0.00021917,2]
[355997577,1741789840916,-500.0,0.00021917,2]
[355997578,1741789840925,-204.1440205,0.00021917,2]
[355997579,1741789840934,-500.0,0.00021917,2]
[355997580,1741789840945,-500.0,0.00021917,2]
[355997581,1741789840954,-500.0,0.00021917,2]
[355997582,1741789840964,-500.0,0.00021917,2]
[355997583,1741789840973,-500.0,0.00021917,2]
[355997584,1741789840983,-638.37521778,0.00021917,2]
[355997585,1741789840993,-500.0,0.00021917,2]
[355997586,1741789841007,-512.35095462,0.00021917,2]
[355997587,1741789841016,-500.0,0.00021917,2]
[355997588,1741789841026,-509.0700847,0.00021917,2]
[355997589,1741789841035,-505.95873464,0.00021917,2]
[355997590,1741789841045,-518.95376314,0.00021917,2]
[355997591,1741789841056,-501.50883965,0.00021917,2]
[355997592,1741789841066,-507.33744744,0.00021917,2]
[355997593,1741789841075,-507.79973897,0.00021917,2]
[355997594,1741789841085,-520.24598827,0.00021917,2]
[355997595,1741789841095,-225.70543005,0.00021917,2]
[355997596,1741789841104,-507.98072865,0.00021917,2]
[355997597,1741789841118,-501.00112667,0.00021917,2]
[355997598,1741789841128,-513.09017446,0.00021917,2]
[355997599,1741789841137,-512.23505407,0.00021917,2]
[355997600,1741789841146,-505.44945636,0.00021917,2]
[355997601,1741789841156,-520.20126565,0.00021917,2]
[355997602,1741789841165,-500.0,0.00021917,2]
[355997603,1741789841175,-508.71838752,0.00021917,2]
[355997604,1741789841184,-507.14291318,0.00021917,2]
[355997605,1741789841193,-552.28402071,0.00021917,2]
[355997606,1741789841203,-516.97291656,0.00021917,2]
[355997607,1741789841212,-500.0,0.00021917,2]
[355997608,1741789841222,-517.08030786,0.00021917,2]
[355997609,1741789841231,-500.0,0.00021917,2]
[355997610,1741789841240,-500.0,0.00021917,2]
[355997611,1741789841249,-305.27899074,0.00021917,2]
[355997612,1741789841259,-500.0,0.00021917,2]
[355997613,1741789841268,-518.17409239,0.00021917,2]
[355997614,1741789841277,-500.0,0.00021917,2]
[355997615,1741789841286,-429.80755991,0.00021917,2]
[355997616,1741789841296,-525.16557436,0.00021917,2]
[355997617,1741789841307,-515.54027716,0.00021917,2]
[355997618,1741789841316,-517.86749121,0.00021917,2]
[355997619,1741789841326,-500.0,0.00021917,2]
[355997620,1741789841335,-500.0,0.00021917,2]
[355997621,1741789841345,-502.20626117,0.00021917,2]
[355997622,1741789841355,-510.98112505,0.00021917,2]
[355997623,1741789841365,-510.64584715,0.00021917,2]
[355997624,1741789841374,-535.96563099,0.00021917,2]
[355997625,1741789841383,-632.11695711,0.00021917,2]
[355997626,1741789841393,-507.30524391,0.00021917,2]
[355997627,1741789841403,-500.0,0.00021917,2]
[355997628,1741789841412,-500.0,0.00021917,2]
[355997629,1741789841422,-500.0,0.00021917,2]
[355997630,1741789841431,-500.0,0.00021917,2]
[355997631,1741789841440,-500.0,0.00021917,2]
[355997632,1741789841450,-500.0,0.00021917,2]
[355997633,1741789841459,-500.0,0.00021917,2]
[355997634,1741789841468,-500.0,0.00021917,2]
[355997635,1741789841477,-511.02940284,0.00021917,2]
[355997636,1741789841486,-500.0,0.00021917,2]
[355997637,1741789841495,-500.0,0.00021917,2]
[355997638,1741789841504,-507.61086561,0.00021917,2]
[355997639,1741789841514,-443.582252,0.00021917,2]
[355997640,1741789841523,-516.01324364,0.00021917,2]
[355997641,1741789841533,-500.0,0.00021917,2]
[355997642,1741789841543,-512.87854661,0.00021917,2]
[355997643,1741789841552,-500.0,0.00021917,2]
[355997644,1741789841563,-602.11467675,0.00021917,2]
[355997645,1741789841572,-500.0,0.00021917,2]
[355997646,1741789841581,-500.0,0.00021917,2]
[355997647,1741789841591,-500.0,0.00021917,2]
[355997648,1741789841600,-500.0,0.00021917,2]
[355997649,1741789841610,-500.0,0.00021917,2]
[355997650,1741789841620,-500.0,0.00021917,2]
[355997651,1741789841629,-545.88626564,0.00021917,2]
[355997652,1741789841638,-821.08,0.00021917,2]
[355997653,1741789841647,-500.0,0.00021917,2]
[355997654,1741789841658,-500.0,0.00021917,2]
[355997655,1741789841667,-519.23138082,0.00021917,2]
[355997656,1741789841677,-495.01422473,0.00021917,2]
[355997657,1741789841686,-500.0,0.00021917,2]
[355997658,1741789841695,-500.0,0.00021917,2]
[355997659,1741789841705,-254.53355088,0.00021917,2]
[355997660,1741789841715,-500.0,0.00021917,2]
[355997661,1741789841724,-511.42032898,0.00021917,2]
[355997662,1741789841734,-519.5,0.00021917,2]
[355997663,1741789841744,-523.29088961,0.00021917,2]
[355997664,1741789841754,-500.0,0.00021917,2]
[355997665,1741789841764,-557.50894232,0.00021917,2]
[355997666,1741789841774,-477.01663991,0.00021917,2]
[355997667,1741789841784,-500.0,0.00021917,2]
[355997668,1741789841793,-166.29440643,0.00021917,2]
[355997669,1741789841803,-530.58618749,0.00021917,2]
[355997670,1741789841813,-500.0,0.00021917,2]
[355997671,1741789841823,-260.32,0.00021917,2]
[355997672,1741789841833,-500.0,0.00021917,2]
[355997673,1741789841843,-500.0,0.00021917,2]
[355997674,1741789841853,-500.0,0.00021917,2]
[355997675,1741789841862,-500.0,0.00021917,2]
[355997676,1741789841872,-500.0,0.00021917,2]
[355997677,1741789841882,-500.0,0.00021917,2]
[355997678,1741789841891,-520.99534531,0.00021917,2]
[355997679,1741789841901,-500.0,0.00021917,2]
[355997680,1741789841911,-500.85932994,0.00021917,2]
[355997681,1741789841920,-559.31131292,0.00021917,2]
[355997682,1741789841930,-500.0,0.00021917,2]
[355997683,1741789841939,-520.50517129,0.00021917,2]
[355997684,1741789841949,-516.60070537,0.00021917,2]
[355997685,1741789841959,-503.92100872,0.00021917,2]
[355997686,1741789841969,-500.0,0.00021917,2]
[355997687,1741789841979,-500.0,0.00021917,2]
[355997688,1741789841989,-502.93936821,0.00021917,2]
[355997689,1741789842002,-506.05569522,0.00021917,2]
[355997690,1741789842011,-500.0,0.00021917,2]
[355997691,1741789842021,-500.0,0.00021917,2]
[355997692,1741789842031,-21843.54,0.00021917,2]
[355997693,1741789842041,-500.0,0.00021917,2]
[355997694,1741789842050,-314.34067797,0.00021917,2]
[355997695,1741789842062,-495.72761307,0.00021917,2]
[355997696,1741789842072,-541.34988226,0.00021917,2]
[355997697,1741789842082,-818.52,0.00021917,2]
[355997698,1741789842091,-500.0,0.00021917,2]
[355997699,1741789842101,-386.11062339,0.00021917,2]
[355997700,1741789842110,-515.08191736,0.00021917,2]
[355997701,1741789842119,-541.03948133,0.00021917,2]
[355997702,1741789842129,-500.0,0.00021917,2]
[355997703,1741789842139,-500.0,0.00021917,2]
[355997704,1741789842149,-500.0,0.00021917,2]
[355997705,1741789842159,-21318.59,0.00021917,2]
[355997706,1741789842168,-500.0,0.00021917,2]
[355997707,1741789842178,-538.75436725,0.00021917,2]
[355997708,1741789842187,-500.0,0.00021917,2]
[355997709,1741789842197,-515.2798722,0.00021917,2]
[355997710,1741789842206,-500.0,0.00021917,2]
[355997711,1741789842216,-513.02273915,0.00021917,2]
[355997712,1741789842226,-1000.0,0.00021917,7]
[355997713,1741789842236,-526.88918704,0.00021917,2]
[355997714,1741789842245,-1382.13,0.00021917,2]
[355997715,1741789842255,-1382.13,0.00021917,2]
[355997716,1741789842265,-1382.13,0.00021917,2]
[355997717,1741789842274,-1382.13,0.00021917,2]
[355997718,1741789842284,-1382.13,0.00021917,2]
[355997719,1741789842294,-1382.13,0.00021917,2]
[355997721,1741789842304,-1382.13,0.00021917,2]
[355997722,1741789842315,-500.0,0.00021917,2]
[355997724,1741789842324,-1382.13,0.00021917,2]
[355997725,1741789842333,-1382.13,0.00021917,2]
[355997726,1741789842343,-1382.13,0.00021917,2]
[355997727,1741789842352,-1382.13,0.00021917,2]
[355997728,1741789842362,-1382.13,0.00021917,2]
[355997729,1741789842371,-500.0,0.00021917,2]
[355997730,1741789842380,-1382.13,0.00021917,2]
[355997731,1741789842389,-1382.13,0.00021917,2]
[355997732,1741789842399,-1382.13,0.00021917,2]
[355997733,1741789842408,-1382.13,0.00021917,2]
[355997734,1741789842417,-1382.13,0.00021917,2]
[355997735,1741789842426,-511.90442643,0.00021917,2]
[355997736,1741789842435,-1382.13,0.00021917,2]
[355997737,1741789842445,-1382.13,0.00021917,2]
[355997740,1741789842581,-1382.13,0.00021917,2]
[355997741,1741789842591,-1382.13,0.00021917,2]
[355997742,1741789842601,-1382.13,0.00021917,2]
[355997743,1741789842610,-1382.13,0.00021917,2]
[355997744,1741789842620,-1382.17871699,0.00021917,2]
[355997745,1741789842630,-506.31443036,0.00021917,2]
[355997746,1741789842640,-508.55164121,0.00021917,2]
[355997747,1741789842649,-2607.76,0.00021917,2]
[355997748,1741789842659,-359.03968934,0.00021917,2]
[355997749,1741789842669,-500.0,0.00021917,2]
[355997750,1741789842678,-500.0,0.00021917,2]
[355997751,1741789842687,-500.0,0.00021917,2]
[355997753,1741789842697,-500.0,0.00021917,2]
[355997754,1741789842707,-500.0,0.00021917,2]
[355997755,1741789842716,-500.0,0.00021917,2]
[355997756,1741789842726,-429.31832679,0.00021917,2]
[355997757,1741789842735,-500.0,0.00021917,2]
[355997758,1741789842744,-501.74341373,0.00021917,2]
[355997759,1741789842754,-518.63931351,0.00021917,2]
[355997760,1741789842764,-171.36884901,0.00021917,2]
[355997761,1741789842774,-501.96633861,0.00021917,2]
[355997763,1741789842784,-464.09170446,0.00021917,2]
[355997764,1741789842793,-154.88920999,0.00021917,2]
[355997766,1741789842803,-500.0,0.00021917,2]
[355997768,1741789842815,-172.83866389,0.00021917,2]
[355997770,1741789842825,-500.0,0.00021917,2]
[355997772,1741789842835,-500.0,0.00021917,2]
[355997774,1741789842847,-500.0,0.00021917,2]
[355997775,1741789842857,-500.0,0.00021917,2]
[355997776,1741789842867,-500.0,0.00021917,2]
[355997777,1741789842877,-500.0,0.00021917,2]
[355997778,1741789842886,-508.23769914,0.00021917,2]
[355997779,1741789842896,-509.16483294,0.00021917,2]
[355997780,1741789842905,-500.0,0.00021917,2]
[355997781,1741789842915,-500.0,0.00021917,2]
[355997782,1741789842924,-511.01215018,0.00021917,2]
[355997783,1741789842935,-500.0,0.00021917,2]
[355997784,1741789842945,-518.81271683,0.00021917,2]
[355997785,1741789842956,-508.32868218,0.00021917,2]
[355997786,1741789842966,-500.0,0.00021917,2]
[355997787,1741789842976,-500.0,0.00021917,2]
[355997788,1741789842987,-500.0,0.00021917,2]
[355997789,1741789842999,-500.0,0.00021917,2]
[355997790,1741789843009,-489.42372418,0.00021917,2]
[355997791,1741789843019,-500.0,0.00021917,2]
[355997792,1741789843030,-514.11227303,0.00021917,2]
[355997793,1741789843040,-500.0,0.00021917,2]
[355997794,1741789843049,-508.49291979,0.00021917,2]
[355997795,1741789843063,-500.0,0.00021917,2]
[355997796,1741789843073,-500.0,0.00021917,2]
[355997797,1741789843083,-500.0,0.00021917,2]
[355997798,1741789843095,-505.20966882,0.00021917,2]
[355997799,1741789843105,-500.0,0.00021917,2]
[355997800,1741789843114,-500.0,0.00021917,2]
[355997801,1741789843124,-523.10085203,0.00021917,2]
[355997802,1741789843134,-511.32755426,0.00021917,2]
[355997803,1741789843145,-500.0,0.00021917,2]
[355997804,1741789843155,-866.17,0.00021917,2]
[355997805,1741789843165,-1293.8017276,0.00021918,7]
[355997806,1741789843175,-540.0,0.00021964,2]
[355997807,1741789843185,-1920.0,0.00021964,2]
[355997808,1741789843196,-2182.0,0.00021964,2]
[355997809,1741789843206,-150.0,0.00021964,2]
[355997810,1741789843216,-500.0,0.00021973,2]
[355997811,1741789843226,-500.0,0.00021973,2]
[355997812,1741789843236,-500.0,0.00021973,2]
[355997813,1741789843246,-500.0,0.00021973,2]
[355997814,1741789843255,-599.82939063,0.00021973,2]
[355997815,1741789843264,-500.0,0.00021973,2]
[355997816,1741789843274,-500.0,0.00021973,2]
[355997817,1741789843284,-500.0,0.00021973,2]
[355997818,1741789843294,-500.0,0.00021973,2]
[355997819,1741789843303,-500.0,0.00021973,2]
[355997820,1741789843316,-500.0,0.00021973,2]
[355997821,1741789843325,-200.009412,0.00021973,2]
[355997822,1741789843335,-500.0,0.00021973,2]
[355997823,1741789843345,-500.0,0.00021973,2]
[355997824,1741789843354,-500.0,0.00021973,2]
[355997825,1741789843364,-648.07551672,0.00022,2]
[355997826,1741789843374,-500.0,0.00022,2]
[355997827,1741789843383,-500.0,0.00022,2]
[355997828,1741789843393,-644.65285909,0.00022,2]
[355997829,1741789843402,-500.0,0.00022,2]
[355997830,1741789843411,-500.0,0.00022,2]
[355997831,1741789843421,-500.0,0.00022,2]
[355997832,1741789843430,-500.0,0.00022,2]
[355997833,1741789843440,-500.0,0.00022,2]
[355997834,1741789843449,-500.0,0.00022,2]
[355997835,1741789843459,-500.0,0.00022,2]
[355997836,1741789843468,-500.0,0.00022,2]
[355997837,1741789843478,-500.0,0.00022,2]
[355997838,1741789843488,-500.0,0.00022,2]
[355997839,1741789843498,-500.0,0.00022,2]
[355997840,1741789843507,-500.0,0.00022,2]
[355997841,1741789843517,-500.0,0.00022,2]
[355997842,1741789843527,-731.88790906,0.00022,2]
[355997843,1741789843536,-500.0,0.00022,2]
[355997844,1741789843546,-500.0,0.00022,2]
[355997845,1741789843557,-500.0,0.00022,2]
[355997846,1741789843566,-500.0,0.00022,2]
[355997847,1741789843576,-810.72619875,0.00022,2]
[355997848,1741789843585,-867.00399541,0.00022,2]
[355997849,1741789843594,-346.71507097,0.00022,2]
[355997850,1741789843604,-17917.2978109,0.00022,2]
[355997851,1741789843613,-706.41285824,0.00022,2]
[355997852,1741789843623,-1000.0,0.00022152,2]
[355997853,1741789843632,-1000.0,0.00022152,2]
[355997854,1741789843642,-1000.0,0.00022152,2]
[355997855,1741789843652,-1000.0,0.00022152,2]
[355997856,1741789843661,-1000.0,0.00022152,2]
[355997857,1741789843671,-1000.0,0.00022152,2]
[355997858,1741789843680,-1000.0,0.00022152,2]
[355997859,1741789843689,-1000.0,0.00022152,2]
[355997860,1741789843699,-1000.0,0.00022152,2]
[355997861,1741789843708,-1028.53709032,0.00022152,2]
[355997862,1741789843718,-1000.0,0.00022152,2]
[355997863,1741789843727,-509.35314078,0.00022152,2]
[355997864,1741789843737,-1000.0,0.00022152,2]
[355997865,1741789843747,-1000.0,0.00022152,2]
[355997866,1741789843756,-1000.0,0.00022152,2]
[355997867,1741789843766,-1000.0,0.00022152,2]
[355997868,1741789843775,-1000.0,0.00022152,2]
[355997869,1741789843785,-252.90435017,0.00022191,2]
[355997870,1741789843794,-504.72440878,0.00022191,2]
[355997871,1741789843803,-500.0,0.00022191,2]
[355997872,1741789843814,-500.0,0.00022191,2]
[355997873,1741789843824,-524.66741718,0.00022191,2]
[355997874,1741789843833,-500.0,0.00022191,2]
[355997875,1741789843843,-519.17679491,0.00022191,2]
[355997876,1741789843852,-500.0,0.00022191,2]
[355997877,1741789843862,-500.0,0.00022191,2]
[355997878,1741789843871,-200.0,0.00022191,2]
[355997879,1741789843882,-523.98355532,0.00022191,2]
[355997880,1741789843891,-334.83226665,0.00022191,2]
[355997881,1741789843900,-500.0,0.00022191,2]
[355997882,1741789843910,-275.43569481,0.00022191,2]
[355997883,1741789843919,-500.0,0.00022191,2]
[355997884,1741789843929,-239.42349852,0.00022191,2]
[355997885,1741789843939,-204.37328426,0.00022191,2]
[355997886,1741789843948,-500.0,0.00022191,2]
[355997887,1741789843958,-203.43876091,0.00022191,2]
[355997888,1741789843967,-314.93275862,0.00022191,2]
[355997889,1741789843977,-500.0,0.00022191,2]
[355997890,1741789843987,-500.0,0.00022191,2]
[355997891,1741789844005,-807.82,0.00022191,2]
[355997892,1741789844021,-272.20708508,0.00022191,2]
[355997893,1741789844030,-500.0,0.00022191,2]
[355997894,1741789844041,-500.0,0.00022191,2]
[355997895,1741789844050,-500.0,0.00022191,2]
[355997896,1741789844064,-500.0,0.00022191,2]
[355997897,1741789844078,-562.30051542,0.00022191,2]
[355997898,1741789844088,-549.16332801,0.00022191,2]
[355997899,1741789844099,-185.2474828,0.00022191,2]
[355997900,1741789844109,-500.0,0.00022191,2]